fUSD/lending_fUSD_20260601
["ID","MTS","AMOUNT","RATE_DAILY","PERIOD"]
[423607845,1780259440000,-500.0,0.00013698,2]
[423607838,1780259440000,-500.0,0.00013698,2]
[423607887,1780259440000,-500.0,0.00013698,2]
[423607890,1780259440000,-500.0,0.00013698,2]
[423607888,1780259440000,-500.0,0.00013698,2]
[423607946,1780259440000,-500.0,0.00013698,2]
[423607944,1780259440000,-500.0,0.00013698,2]
[423607950,1780259440000,-500.0,0.00013698,2]
[423607952,1780259440000,-365.01560358,0.00013698,2]
[423607956,1780259440000,-500.0,0.00013698,2]
[423607954,1780259440000,-500.0,0.00013698,2]
[423607948,1780259440000,-500.0,0.00013698,2]
[423607958,1780259440000,-500.0,0.00013698,2]
[423607967,1780259440000,-500.0,0.00013698,2]
[423607965,1780259440000,-500.0,0.00013698,2]
[423607963,1780259440000,-500.0,0.00013698,2]
[423607961,1780259440000,-500.0,0.00013698,2]
[423607969,1780259440000,-500.0,0.00013698,2]
[423607971,1780259440000,-500.0,0.00013698,2]
[423607986,1780259440000,-500.0,0.00013698,2]
[423607984,1780259440000,-500.0,0.00013698,2]
[423607988,1780259440000,-500.0,0.00013698,2]
[423607990,1780259440000,-524.73,0.00013698,2]
[423607973,1780259440000,-500.0,0.00013698,2]
[423607976,1780259440000,-500.0,0.00013698,2]
[423607982,1780259440000,-500.0,0.00013698,2]
[423607992,1780259440000,-200.0,0.00013699,2]
[423607977,1780259440000,-500.0,0.00013698,2]
[423607979,1780259440000,-500.0,0.00013698,2]
[423607994,1780259440000,-151.0,0.00013699,2]
[423607996,1780259440000,-151.0,0.00013699,2]
[423607886,1780259440000,-484.96,0.00013698,2]
[423608003,1780259440000,-151.0,0.00013699,2]
[423608000,1780259440000,-151.0,0.00013699,2]
[423607941,1780259440000,-500.0,0.00013698,2]
[423607924,1780259440000,-500.0,0.00013698,2]
[423607998,1780259440000,-151.0,0.00013699,2]
[423607929,1780259440000,-500.0,0.00013698,2]
[423607931,1780259440000,-500.0,0.00013698,2]
[423607892,1780259440000,-174.93720831,0.00013698,2]
[423607894,1780259440000,-534.65,0.00013698,2]
[423607889,1780259440000,-500.0,0.00013698,2]
[423607896,1780259440000,-534.65,0.00013698,2]
[423607893,1780259440000,-534.65,0.00013698,2]
[423607895,1780259440000,-534.65,0.00013698,2]
[423607900,1780259440000,-534.65,0.00013698,2]
[423607898,1780259440000,-534.65,0.00013698,2]
[423607899,1780259440000,-534.65,0.00013698,2]
[423607901,1780259440000,-534.65,0.00013698,2]
[423607910,1780259440000,-500.0,0.00013698,2]
[423607902,1780259440000,-534.65,0.00013698,2]
[423607904,1780259440000,-534.65,0.00013698,2]
[423607908,1780259440000,-500.0,0.00013698,2]
[423607891,1780259440000,-500.0,0.00013698,2]
[423607912,1780259440000,-500.0,0.00013698,2]
[423607903,1780259440000,-534.65,0.00013698,2]
[423607935,1780259440000,-500.0,0.00013698,2]
[423607937,1780259440000,-500.0,0.00013698,2]
[423607933,1780259440000,-500.0,0.00013698,2]
[423607939,1780259440000,-500.0,0.00013698,2]
[423607922,1780259440000,-500.0,0.00013698,2]
[423607926,1780259440000,-500.0,0.00013698,2]
[423607918,1780259440000,-500.0,0.00013698,2]
[423607905,1780259440000,-500.0,0.00013698,2]
[423607920,1780259440000,-500.0,0.00013698,2]
[423607928,1780259440000,-500.0,0.00013698,2]
[423607907,1780259440000,-500.0,0.00013698,2]
[423607914,1780259440000,-500.0,0.00013698,2]
[423607916,1780259440000,-500.0,0.00013698,2]
[423608062,1780259441000,-500.0,0.00014358,2]
[423608079,1780259441000,-1067.568537,0.00015068,2]
[423608068,1780259441000,-2000.0,0.000149,2]
[423608069,1780259441000,-351.55155215,0.00015,2]
[423608071,1780259441000,-2000.0,0.00015034,2]
[423608070,1780259441000,-24079.85013145,0.00015,2]
[423608078,1780259441000,-1067.568537,0.00015068,2]
[423608074,1780259441000,-1067.568537,0.00015068,2]
[423608077,1780259441000,-1067.568537,0.00015068,2]
[423608080,1780259441000,-1067.568537,0.00015068,2]
[423608081,1780259441000,-155.34,0.0001508,2]
[423608072,1780259441000,-450.31,0.00015068,2]
[423608073,1780259441000,-1067.568537,0.00015068,2]
[423608084,1780259441000,-200.0,0.00015342,2]
[423608075,1780259441000,-1067.568537,0.00015068,2]
[423608082,1780259441000,-10112.46114999,0.00015204,2]
[423608083,1780259441000,-1517.64,0.000153,2]
[423608087,1780259441000,-300.0,0.00016,2]
[423608085,1780259441000,-869.7,0.000156,2]
[423608086,1780259441000,-2273.37776545,0.00015807,2]
[423608089,1780259441000,-2266.0,0.000161,2]
[423608088,1780259441000,-201.10590632,0.000161,7]
[423608090,1780259441000,-1539.06,0.00016122,2]
[423608091,1780259441000,-200.0,0.0001634,2]
[423608092,1780259441000,-512.3,0.00016438,2]
[423608067,1780259441000,-10679.24065909,0.000149,2]
[423608076,1780259441000,-1067.568537,0.00015068,2]
[423608064,1780259441000,-166.66,0.00014384,2]
[423608028,1780259441000,-2000.0,0.00013781,2]
[423608060,1780259441000,-166.66,0.00014247,2]
[423608005,1780259441000,-151.0,0.00013699,2]
[423608007,1780259441000,-151.0,0.00013699,2]
[423608015,1780259441000,-151.0,0.00013699,2]
[423608011,1780259441000,-151.0,0.00013699,2]
[423608009,1780259441000,-151.0,0.00013699,2]
[423608013,1780259441000,-151.0,0.00013699,2]
[423608017,1780259441000,-162.917968,0.00013699,2]
[423608019,1780259441000,-166.66,0.00013699,2]
[423608021,1780259441000,-2000.0,0.00013699,7]
[423608023,1780259441000,-869.7,0.000137,2]
[423608033,1780259441000,-166.66,0.00013973,2]
[423608030,1780259441000,-166.66,0.00013836,2]
[423608065,1780259441000,-1539.06,0.00014657,2]
[423608026,1780259441000,-3707.2330037,0.00013723,2]
[423608035,1780259441000,-276.8336935,0.00013981,2]
[423608041,1780259441000,-3130.0,0.00013991,5]
[423608039,1780259441000,-3145.0,0.00013991,5]
[423608037,1780259441000,-14090.15774791,0.0001399,2]
[423608043,1780259441000,-2000.0,0.00014,2]
[423608045,1780259441000,-2000.0,0.00014,2]
[423608050,1780259441000,-187.101,0.00014025,2]
[423608054,1780259441000,-2000.0,0.00014087,2]
[423608052,1780259441000,-2357.373,0.00014025,2]
[423608056,1780259441000,-500.0,0.00014087,2]
[423608048,1780259441000,-250.0,0.00014,2]
[423608058,1780259441000,-166.66,0.0001411,2]
[423608025,1780259441000,-500.0,0.00013707,2]
[423608093,1780259441000,-275.965266,0.00016438,2]
[423608097,1780259441000,-389.761139,0.00016438,2]
[423608095,1780259441000,-389.761139,0.00016438,2]
[423608130,1780259441000,-4999.99,0.00018533,2]
[423608128,1780259441000,-999.99,0.00018533,2]
[423608129,1780259441000,-1581.2,0.00018533,2]
[423608137,1780259441000,-1967.45142794,0.000187,2]
[423608138,1780259441000,-790.99941994,0.000187,2]
[423608132,1780259441000,-9999.99,0.00018533,2]
[423608135,1780259441000,-150.99,0.00018533,2]
[423608133,1780259441000,-23309.13,0.00018533,2]
[423608131,1780259441000,-299.99,0.00018533,4]
[423608136,1780259441000,-5603.78,0.00018533,2]
[423608134,1780259441000,-9999.99,0.00018533,2]
[423608139,1780259441000,-1618.9,0.000188,2]
[423608127,1780259441000,-2133.52,0.00018533,2]
[423608142,1780259441000,-383.09583771,0.00019,2]
[423608143,1780259441000,-1463.69382468,0.00019,2]
[423608141,1780259441000,-2000.0,0.000189,2]
[423608144,1780259441000,-151.0,0.00019088,2]
[423608150,1780259441000,-151.0,0.00019088,2]
[423608147,1780259441000,-693.39197629,0.00019088,2]
[423608145,1780259441000,-151.0,0.00019088,2]
[423608148,1780259441000,-1428.38747117,0.00019088,2]
[423608146,1780259441000,-151.0,0.00019088,2]
[423608151,1780259441000,-151.0,0.00019088,2]
[423608153,1780259441000,-151.0,0.00019088,2]
[423608152,1780259441000,-151.0,0.00019088,2]
[423608094,1780259441000,-450.31,0.00016438,2]
[423608149,1780259441000,-151.0,0.00019088,2]
[423608126,1780259441000,-11774.65,0.00018533,2]
[423608140,1780259441000,-200.0,0.00018847,2]
[423608123,1780259441000,-790.99941994,0.000185,2]
[423608096,1780259441000,-389.761139,0.00016438,2]
[423608121,1780259441000,-512.3,0.0001841,2]
[423608098,1780259441000,-389.761139,0.00016438,2]
[423608100,1780259441000,-168.2,0.00016712,2]
[423608099,1780259441000,-537.13,0.00016474,2]
[423608101,1780259441000,-180.87,0.00016767,2]
[423608103,1780259441000,-500.0,0.00017096,2]
[423608102,1780259441000,-200.0,0.00017095,2]
[423608113,1780259441000,-350.0,0.00018,2]
[423608105,1780259441000,-150.0,0.00017665,3]
[423608106,1780259441000,-3707.2330037,0.00017871,2]
[423608107,1780259441000,-1090.00342372,0.0001789,2]
[423608111,1780259441000,-790.99941994,0.00018,2]
[423608112,1780259441000,-198.81886685,0.00018,2]
[423608104,1780259441000,-1539.06,0.00017588,2]
[423608122,1780259441000,-1967.45142794,0.000185,2]
[423608124,1780259441000,-9999.99,0.00018533,2]
[423608108,1780259441000,-200.0,0.00017971,2]
[423608118,1780259441000,-428.81470157,0.00018379,2]
[423608117,1780259441000,-869.7,0.000182,2]
[423608119,1780259441000,-1967.45142794,0.000184,2]
[423608125,1780259441000,-2833.58,0.00018533,2]
[423608116,1780259441000,-790.99941994,0.000182,2]
[423608115,1780259441000,-1967.45142794,0.000182,2]
[423608114,1780259441000,-10112.46114999,0.00018169,2]
[423608110,1780259441000,-1967.45142794,0.00018,2]
[423608109,1780259441000,-8076.97962194,0.00018,2]
[423608120,1780259441000,-790.99941994,0.000184,2]
[423608192,1780259442000,-550.8,0.00019338,2]
[423608193,1780259442000,-550.8,0.00019338,2]
[423608194,1780259442000,-550.88,0.00019338,2]
[423608195,1780259442000,-1412.603045,0.00019338,2]
[423608200,1780259442000,-151.0,0.00019338,2]
[423608189,1780259442000,-801.85129954,0.00019308,2]
[423608202,1780259442000,-831.51979762,0.00019363,2]
[423608191,1780259442000,-550.8,0.00019338,2]
[423608187,1780259442000,-4595.5544039,0.00019243,2]
[423608186,1780259442000,-373015.344337,0.00019243,2]
[423608190,1780259442000,-550.8,0.00019338,2]
[423608201,1780259442000,-151.0,0.00019338,2]
[423608197,1780259442000,-1412.603045,0.00019338,2]
[423608218,1780259442000,-200.0,0.000198,7]
[423608198,1780259442000,-1412.603045,0.00019338,2]
[423608199,1780259442000,-200.162005,0.00019338,2]
[423608206,1780259442000,-243.0,0.00019452,2]
[423608208,1780259442000,-894.19061325,0.00019473,2]
[423608211,1780259442000,-961.58486558,0.00019583,2]
[423608212,1780259442000,-151.0,0.00019631,2]
[423608210,1780259442000,-927.27566594,0.00019528,2]
[423608213,1780259442000,-500.0,0.00019633,2]
[423608214,1780259442000,-500.0,0.00019633,2]
[423608215,1780259442000,-1481.2378076,0.00019636,2]
[423608216,1780259442000,-2157.14243826,0.00019636,2]
[423608204,1780259442000,-862.28603014,0.00019418,2]
[423608188,1780259442000,-773.24136889,0.00019253,2]
[423608196,1780259442000,-1412.603045,0.00019338,2]
[423608182,1780259442000,-1067.568537,0.00019243,2]
[423608163,1780259442000,-151.0,0.00019088,2]
[423608185,1780259442000,-272.898764,0.00019243,2]
[423608228,1780259442000,-1060.22129421,0.0002,2]
[423608162,1780259442000,-151.0,0.00019088,2]
[423608157,1780259442000,-151.0,0.00019088,2]
[423608154,1780259442000,-151.0,0.00019088,2]
[423608156,1780259442000,-151.0,0.00019088,2]
[423608155,1780259442000,-2080.17592889,0.00019088,2]
[423608158,1780259442000,-151.0,0.00019088,2]
[423608160,1780259442000,-151.0,0.00019088,2]
[423608161,1780259442000,-151.0,0.00019088,2]
[423608159,1780259442000,-151.0,0.00019088,2]
[423608165,1780259442000,-151.0,0.00019088,2]
[423608175,1780259442000,-151.0,0.00019178,2]
[423608170,1780259442000,-311.217823,0.00019178,2]
[423608178,1780259442000,-745.65223615,0.00019198,2]
[423608166,1780259442000,-151.0,0.00019088,2]
[423608169,1780259442000,-311.217823,0.00019178,2]
[423608164,1780259442000,-151.0,0.00019088,2]
[423608168,1780259442000,-311.217823,0.00019178,2]
[423608176,1780259442000,-151.0,0.00019178,2]
[423608167,1780259442000,-719.04747942,0.00019143,2]
[423608173,1780259442000,-151.0,0.00019178,2]
[423608172,1780259442000,-151.0,0.00019178,2]
[423608174,1780259442000,-151.0,0.00019178,2]
[423608177,1780259442000,-151.0,0.00019178,2]
[423608181,1780259442000,-1067.568537,0.00019243,2]
[423608184,1780259442000,-151.0,0.00019243,2]
[423608183,1780259442000,-151.0,0.00019243,2]
[423608180,1780259442000,-1067.568537,0.00019243,2]
[423608171,1780259442000,-311.217823,0.00019178,2]
[423608226,1780259442000,-1313.45756698,0.0002,2]
[423608179,1780259442000,-1067.568537,0.00019243,2]
[423608220,1780259442000,-196.72193408,0.000199,2]
[423608248,1780259442000,-450.0,0.00020024,7]
[423608253,1780259442000,-2000.0,0.00020274,7]
[423608259,1780259442000,-3415.87687989,0.00021,7]
[423608263,1780259442000,-1097.0,0.00021,2]
[423608261,1780259442000,-507.0,0.00021,2]
[423608266,1780259442000,-779.0,0.00021,2]
[423608269,1780259442000,-545.0,0.00021,2]
[423608267,1780259442000,-288.0,0.00021,2]
[423608260,1780259442000,-387.0,0.00021,2]
[423608265,1780259442000,-158.0,0.00021,2]
[423608268,1780259442000,-186.0,0.00021,2]
[423608271,1780259442000,-1196.0,0.00021,2]
[423608262,1780259442000,-265.0,0.00021,2]
[423608254,1780259442000,-512.3,0.00020381,2]
[423608264,1780259442000,-864.0,0.00021,2]
[423608284,1780259442000,-2494.55939288,0.00021828,2]
[423608273,1780259442000,-10112.46114999,0.00021135,2]
[423608272,1780259442000,-534.65,0.00021079,2]
[423608276,1780259442000,-1651.81367706,0.0002128,2]
[423608278,1780259442000,-83230.9735197,0.00021401,2]
[423608277,1780259442000,-2405.55389863,0.0002128,2]
[423608274,1780259442000,-500.0,0.0002119,2]
[423608283,1780259442000,-1712.93078311,0.00021828,2]
[423608281,1780259442000,-3906.77,0.00021765,2]
[423608280,1780259442000,-500.0,0.00021671,2]
[423608279,1780259442000,-1025.4067901,0.00021401,2]
[423608275,1780259442000,-180.87,0.00021205,2]
[423608282,1780259442000,-500.0,0.00021825,2]
[423608270,1780259442000,-156.0,0.00021,2]
[423608251,1780259442000,-2236.95670847,0.00020184,2]
[423608219,1780259442000,-500.0,0.000199,7]
[423608249,1780259442000,-1536.04360648,0.00020184,2]
[423608221,1780259442000,-196.72193406,0.000199,2]
[423608225,1780259442000,-245.72939499,0.0002,2]
[423608217,1780259442000,-997.16350561,0.00019638,2]
[423608227,1780259442000,-200.0,0.0002,2]
[423608224,1780259442000,-5286.26766859,0.0002,2]
[423608222,1780259442000,-537.13,0.00019968,2]
[423608223,1780259442000,-4661.54256534,0.0002,5]
[423608285,1780259442000,-5000.0,0.00021918,2]
[423608229,1780259442000,-2651.58474907,0.0002,2]
[423608241,1780259442000,-545.0,0.0002,2]
[423608242,1780259442000,-156.0,0.0002,2]
[423608231,1780259442000,-507.0,0.0002,2]
[423608243,1780259442000,-1196.0,0.0002,2]
[423608234,1780259442000,-864.0,0.0002,2]
[423608230,1780259442000,-387.0,0.0002,2]
[423608239,1780259442000,-186.0,0.0002,2]
[423608232,1780259442000,-265.0,0.0002,2]
[423608247,1780259442000,-1050.0,0.00020024,2]
[423608257,1780259442000,-1592.87721992,0.00020732,2]
[423608246,1780259442000,-400.0,0.0002,2]
[423608255,1780259442000,-500.0,0.00020573,2]
[423608256,1780259442000,-2684.65380489,0.000207,2]
[423608258,1780259442000,-2319.72410669,0.00020732,2]
[423608245,1780259442000,-3906.77,0.0002,2]
[423608236,1780259442000,-779.0,0.0002,2]
[423608237,1780259442000,-288.0,0.0002,2]
[423608233,1780259442000,-1097.0,0.0002,2]
[423608235,1780259442000,-158.0,0.0002,2]
[423608244,1780259442000,-869.7,0.0002,2]
[423608326,1780259443000,-354.51006341,0.00023,2]
[423608327,1780259443000,-387.0,0.00023,2]
[423608325,1780259443000,-2682.57183977,0.00022924,2]
[423608337,1780259443000,-545.0,0.00023,2]
[423608336,1780259443000,-186.0,0.00023,2]
[423608315,1780259443000,-1226.0,0.0002266,2]
[423608323,1780259443000,-150.0,0.00022877,2]
[423608324,1780259443000,-1842.0326633,0.00022924,2]
[423608321,1780259443000,-217.0,0.00022877,2]
[423608319,1780259443000,-1590.0,0.00022812,3]
[423608322,1780259443000,-150.0,0.00022877,2]
[423608313,1780259443000,-2484.0,0.00022589,5]
[423608328,1780259443000,-507.0,0.00023,2]
[423608348,1780259443000,-2781.82699784,0.00023472,2]
[423608331,1780259443000,-864.0,0.00023,2]
[423608329,1780259443000,-265.0,0.00023,2]
[423608330,1780259443000,-1097.0,0.00023,2]
[423608332,1780259443000,-174.0,0.00023,2]
[423608334,1780259443000,-167.0,0.00023,7]
[423608335,1780259443000,-288.0,0.00023,2]
[423608338,1780259443000,-1196.0,0.00023,2]
[423608340,1780259443000,-500.0,0.00023155,2]
[423608342,1780259443000,-409.33,0.000232,14]
[423608344,1780259443000,-251.88,0.00023252,2]
[423608346,1780259443000,-299.16272091,0.00023472,2]
[423608339,1780259443000,-606.09499265,0.00023021,2]
[423608350,1780259443000,-1173.34378675,0.000235,2]
[423608317,1780259443000,-1356.0,0.0002266,2]
[423608333,1780259443000,-779.0,0.00023,2]
[423608320,1780259443000,-200.0,0.00022877,2]
[423608301,1780259443000,-3707.2330037,0.0002202,2]
[423608318,1780259443000,-157.06,0.00022732,2]
[423608356,1780259443000,-500.0,0.00023849,2]
[423608286,1780259443000,-261.01,0.00021918,2]
[423608288,1780259443000,-387.0,0.00022,2]
[423608297,1780259443000,-545.0,0.00022,2]
[423608294,1780259443000,-779.0,0.00022,2]
[423608298,1780259443000,-1196.0,0.00022,2]
[423608290,1780259443000,-265.0,0.00022,2]
[423608287,1780259443000,-815.0747695,0.00022,7]
[423608296,1780259443000,-186.0,0.00022,2]
[423608293,1780259443000,-158.0,0.00022,2]
[423608292,1780259443000,-864.0,0.00022,2]
[423608289,1780259443000,-507.0,0.00022,2]
[423608291,1780259443000,-1097.0,0.00022,2]
[423608316,1780259443000,-3639.0,0.0002266,2]
[423608295,1780259443000,-288.0,0.00022,2]
[423608299,1780259443000,-763.1,0.00022,2]
[423608310,1780259443000,-500.0,0.00022499,2]
[423608303,1780259443000,-150.0,0.000221,14]
[423608311,1780259443000,-10269.34222228,0.000225,2]
[423608302,1780259443000,-528.09684069,0.000221,7]
[423608307,1780259443000,-2586.85809042,0.00022376,2]
[423608306,1780259443000,-1776.30922209,0.00022376,2]
[423608304,1780259443000,-308.24,0.000222,2]
[423608305,1780259443000,-512.3,0.00022353,2]
[423608308,1780259443000,-869.7,0.000224,7]
[423608309,1780259443000,-500.0,0.0002248,2]
[423608312,1780259443000,-150.0,0.00022577,2]
[423608314,1780259443000,-1273.0,0.0002266,2]
[423608300,1780259443000,-450.0,0.00022,2]
[423608352,1780259443000,-3906.77,0.00023529,2]
[423608354,1780259443000,-260.90912991,0.00023787,2]
[423608362,1780259443000,-1256.76188349,0.00024,2]
[423608416,1780259443000,-172.86,0.00024946,7]
[423608430,1780259443000,-1112.135698,0.00025,2]
[423608418,1780259443000,-534.65,0.00024999,2]
[423608417,1780259443000,-300.0,0.00024999,10]
[423608434,1780259443000,-786.0,0.00025,2]
[423608432,1780259443000,-864.0,0.00025,2]
[423608436,1780259443000,-300.0,0.00025,2]
[423608438,1780259443000,-197.0,0.00025,2]
[423608440,1780259443000,-552.0,0.00025,2]
[423608442,1780259443000,-1209.0,0.00025,2]
[423608452,1780259443000,-3906.77,0.00025294,7]
[423608446,1780259443000,-151.0,0.00025,2]
[423608449,1780259443000,-172.86,0.00025234,30]
[423608426,1780259443000,-510.0,0.00025,2]
[423608455,1780259443000,-500.0,0.00025302,2]
[423608461,1780259443000,-151.0,0.00025567,7]
[423608465,1780259443000,-150.0,0.00025577,2]
[423608469,1780259443000,-300.0,0.00025659,10]
[423608478,1780259443000,-3639.0,0.0002566,2]
[423608475,1780259443000,-1226.0,0.0002566,2]
[423608472,1780259443000,-1273.0,0.0002566,2]
[423608467,1780259443000,-180.87,0.00025644,2]
[423608485,1780259443000,-150.0,0.00025877,2]
[423608483,1780259443000,-173.43,0.00025811,7]
[423608487,1780259443000,-150.0,0.00025877,2]
[423608489,1780259443000,-700.0,0.000259,9]
[423608481,1780259443000,-1356.0,0.0002566,2]
[423608491,1780259443000,-500.0,0.00026,2]
[423608458,1780259443000,-173.43,0.00025523,2]
[423608411,1780259443000,-231.54,0.00024658,2]
[423608493,1780259443000,-550.0,0.00026,2]
[423608428,1780259443000,-269.0,0.00025,2]
[423608358,1780259443000,-1124.0,0.0002398,2]
[423608370,1780259443000,-1097.0,0.00024,2]
[423608368,1780259443000,-265.0,0.00024,2]
[423608378,1780259443000,-186.0,0.00024,2]
[423608366,1780259443000,-507.0,0.00024,2]
[423608374,1780259443000,-779.0,0.00024,2]
[423608360,1780259443000,-1039.36066149,0.00024,2]
[423608364,1780259443000,-387.0,0.00024,2]
[423608415,1780259443000,-763.1,0.00024902,7]
[423608376,1780259443000,-288.0,0.00024,2]
[423608372,1780259443000,-864.0,0.00024,2]
[423608401,1780259443000,-500.0,0.00024565,2]
[423608399,1780259443000,-254.0,0.00024407,10]
[423608387,1780259443000,-2884.75459676,0.0002402,2]
[423608380,1780259443000,-545.0,0.00024,2]
[423608393,1780259443000,-1000.0,0.0002419,2]
[423608395,1780259443000,-512.3,0.00024324,2]
[423608424,1780259443000,-393.0,0.00025,2]
[423608422,1780259443000,-184409.06640047,0.00025,2]
[423608420,1780259443000,-500.0,0.00024999,2]
[423608409,1780259443000,-1000.0,0.00024658,2]
[423608407,1780259443000,-869.7,0.000246,7]
[423608413,1780259443000,-172.86,0.00024658,2]
[423608397,1780259443000,-507.31049268,0.00024397,7]
[423608403,1780259443000,-2991.49051684,0.00024568,2]
[423608389,1780259443000,-200.0,0.00024041,2]
[423608391,1780259443000,-10112.46114999,0.000241,2]
[423608383,1780259443000,-1196.0,0.00024,2]
[423608405,1780259443000,-410.35239025,0.00024569,2]
[423608385,1780259443000,-500.0,0.00024,2]
[423608588,1780259444000,-151.0,0.00027397,2]
[423608579,1780259444000,-843.767474,0.00027397,2]
[423608580,1780259444000,-843.767474,0.00027397,2]
[423608578,1780259444000,-843.767474,0.00027397,2]
[423608575,1780259444000,-1500.0,0.00027397,2]
[423608563,1780259444000,-389.761139,0.00027397,2]
[423608567,1780259444000,-311.217823,0.00027397,2]
[423608569,1780259444000,-311.217823,0.00027397,2]
[423608565,1780259444000,-389.761139,0.00027397,2]
[423608573,1780259444000,-311.217823,0.00027397,2]
[423608571,1780259444000,-311.217823,0.00027397,2]
[423608577,1780259444000,-843.767474,0.00027397,2]
[423608587,1780259444000,-151.0,0.00027397,2]
[423608601,1780259444000,-151.0,0.00027397,2]
[423608583,1780259444000,-151.0,0.00027397,2]
[423608581,1780259444000,-151.0,0.00027397,2]
[423608584,1780259444000,-151.0,0.00027397,2]
[423608586,1780259444000,-231.54,0.00027397,2]
[423608582,1780259444000,-151.0,0.00027397,2]
[423608590,1780259444000,-151.0,0.00027397,2]
[423608589,1780259444000,-151.0,0.00027397,2]
[423608591,1780259444000,-151.0,0.00027397,2]
[423608596,1780259444000,-8608.43,0.00027397,10]
[423608592,1780259444000,-151.0,0.00027397,2]
[423608593,1780259444000,-288.517632,0.00027397,2]
[423608595,1780259444000,-300.0,0.00027397,2]
[423608598,1780259444000,-151.0,0.00027397,2]
[423608561,1780259444000,-389.761139,0.00027397,2]
[423608585,1780259444000,-500.0,0.00027397,2]
[423608559,1780259444000,-389.761139,0.00027397,2]
[423608534,1780259444000,-155.31944981,0.00026852,2]
[423608551,1780259444000,-300.0,0.00027396,10]
[423608599,1780259444000,-151.0,0.00027397,2]
[423608495,1780259444000,-459.45332818,0.00026061,2]
[423608498,1780259444000,-173.43,0.00026099,30]
[423608500,1780259444000,-512.3,0.00026296,2]
[423608504,1780259444000,-1469.428798,0.00026384,2]
[423608506,1780259444000,-1469.428798,0.00026384,2]
[423608502,1780259444000,-1590.0,0.00026304,3]
[423608513,1780259444000,-1469.428798,0.00026384,2]
[423608517,1780259444000,-1469.428798,0.00026384,2]
[423608519,1780259444000,-1469.428798,0.00026384,2]
[423608511,1780259444000,-1469.428798,0.00026384,2]
[423608515,1780259444000,-1469.428798,0.00026384,2]
[423608509,1780259444000,-1469.428798,0.00026384,2]
[423608557,1780259444000,-209.2462101,0.00027397,2]
[423608521,1780259444000,-1469.428798,0.00026384,2]
[423608525,1780259444000,-1469.428798,0.00026384,2]
[423608541,1780259444000,-596.852678,0.00027,2]
[423608539,1780259444000,-869.7,0.000269,7]
[423608527,1780259444000,-1469.428798,0.00026384,2]
[423608532,1780259444000,-2000.0,0.00026849,7]
[423608536,1780259444000,-345.810808,0.0002687,5]
[423608530,1780259444000,-173.43,0.00026388,2]
[423608543,1780259444000,-3906.77,0.00027059,7]
[423608545,1780259444000,-10112.46114999,0.00027065,2]
[423608547,1780259444000,-179.35756026,0.00027078,5]
[423608549,1780259444000,-615.0,0.00027137,2]
[423608553,1780259444000,-154.3,0.00027397,2]
[423608555,1780259444000,-154.29999999,0.00027397,30]
[423608523,1780259444000,-1469.428798,0.00026384,2]
[423608594,1780259444000,-9060.31,0.00027397,10]
[423608600,1780259444000,-151.0,0.00027397,2]